fUSD/lending_fUSD_20240425
["ID","MTS","AMOUNT","RATE_DAILY","PERIOD"]
[323534846,1714075840027,-500.0,0.00011131,2]
[323534847,1714075840037,-500.0,0.00011131,2]
[323534848,1714075840046,-500.0,0.00011131,2]
[323534849,1714075840263,-523.89,0.00011131,2]
[323534850,1714075840274,-286.5,0.00011131,2]
[323534851,1714075840284,-500.0,0.00011131,2]
[323534852,1714075840294,-500.0,0.00011131,2]
[323534853,1714075840303,-500.0,0.00011131,2]
[323534854,1714075840313,-500.0,0.00011131,2]
[323534855,1714075840322,-376.14899367,0.00011131,2]
[323534856,1714075840331,-500.0,0.00011131,2]
[323534857,1714075840340,-500.0,0.00011131,2]
[323534858,1714075840349,-576.39205073,0.00011131,2]
[323534859,1714075840358,-500.0,0.00011131,2]
[323534860,1714075840367,-500.0,0.00011131,2]
[323534861,1714075840379,-500.0,0.00011131,2]
[323534862,1714075840388,-500.0,0.00011131,2]
[323534863,1714075840397,-500.0,0.00011131,2]
[323534864,1714075840407,-500.0,0.00011131,2]
[323534865,1714075840416,-500.0,0.00011131,2]
[323534866,1714075840425,-500.0,0.00011131,2]
[323534867,1714075840435,-500.0,0.00011131,2]
[323534868,1714075840444,-500.0,0.00011131,2]
[323534869,1714075840454,-500.0,0.00011131,2]
[323534870,1714075840462,-150.0,0.00011131,2]
[323534871,1714075840472,-500.0,0.00011131,2]
[323534872,1714075840481,-156.07,0.00011131,2]
[323534873,1714075840490,-500.0,0.00011131,2]
[323534874,1714075840499,-500.0,0.00011131,2]
[323534875,1714075840508,-500.0,0.00011131,2]
[323534876,1714075840518,-500.0,0.00011131,2]
[323534877,1714075840527,-500.0,0.00011131,2]
[323534879,1714075840536,-500.0,0.00011131,2]
[323534880,1714075840544,-500.0,0.00011131,2]
[323534881,1714075840554,-500.0,0.00011131,2]
[323534882,1714075840564,-500.0,0.00011131,2]
[323534883,1714075840573,-551.49,0.00011131,2]
[323534884,1714075840582,-500.0,0.00011131,2]
[323534885,1714075840591,-551.94,0.00011131,2]
[323534886,1714075840600,-500.0,0.00011131,2]
[323534887,1714075840610,-500.0,0.00011131,2]
[323534888,1714075840619,-172.94322661,0.00011131,2]
[323534889,1714075840630,-340.70183336,0.00011131,2]
[323534890,1714075840639,-500.0,0.00011131,2]
[323534891,1714075840648,-500.0,0.00011131,2]
[323534892,1714075840657,-500.0,0.00011131,2]
[323534893,1714075840666,-500.0,0.00011131,2]
[323534894,1714075840675,-500.0,0.00011131,2]
[323534895,1714075840684,-570.07,0.00011131,2]
[323534896,1714075840693,-500.0,0.00011131,2]
[323534897,1714075840702,-500.0,0.00011131,2]
[323534898,1714075840711,-500.0,0.00011131,2]
[323534899,1714075840720,-500.0,0.00011131,2]
[323534900,1714075840729,-532.95129536,0.00011131,2]
[323534901,1714075840738,-500.0,0.00011131,2]
[323534902,1714075840748,-500.0,0.00011131,2]
[323534903,1714075840757,-500.0,0.00011131,2]
[323534904,1714075840767,-457.40214613,0.00011131,2]
[323534905,1714075840776,-500.0,0.00011131,2]
[323534906,1714075840785,-500.0,0.00011131,2]
[323534907,1714075840795,-503.04701793,0.00011131,2]
[323534908,1714075840805,-509.34,0.00011131,2]
[323534909,1714075840814,-612.67,0.00011131,2]
[323534910,1714075840823,-500.0,0.00011131,2]
[323534911,1714075840832,-500.0,0.00011131,2]
[323534912,1714075840842,-751.85,0.00011131,2]
[323534913,1714075840851,-501.46,0.00011131,2]
[323534914,1714075840860,-500.0,0.00011131,2]
[323534915,1714075840872,-511.19661581,0.00011131,2]
[323534916,1714075840882,-500.0,0.00011131,2]
[323534917,1714075840891,-500.0,0.00011131,2]
[323534918,1714075840900,-588.69,0.00011131,2]
[323534919,1714075840909,-500.0,0.00011131,2]
[323534920,1714075840919,-500.0,0.00011131,2]
[323534921,1714075840929,-921.42,0.00011131,2]
[323534922,1714075840938,-500.0,0.00011131,2]
[323534923,1714075840947,-252.05,0.00011131,2]
[323534924,1714075840957,-779.87,0.00011131,2]
[323534925,1714075840966,-500.0,0.00011131,2]
[323534926,1714075840976,-500.0,0.00011131,2]
[323534927,1714075840985,-500.0,0.00011131,2]
[323534928,1714075840994,-500.0,0.00011131,2]
[323534929,1714075841003,-500.0,0.00011131,2]
[323534930,1714075841013,-500.0,0.00011131,2]
[323534931,1714075841025,-500.0,0.00011131,2]
[323534932,1714075841035,-518.31464549,0.00011131,2]
[323534933,1714075841044,-500.0,0.00011131,2]
[323534934,1714075841054,-500.0,0.00011131,2]
[323534935,1714075841063,-500.0,0.00011131,2]
[323534936,1714075841073,-500.0,0.00011131,2]
[323534937,1714075841083,-606.6,0.00011131,2]
[323534938,1714075841094,-500.0,0.00011131,2]
[323534939,1714075841103,-168.99271975,0.00011132,2]
[323534940,1714075841113,-150.0,0.00011185,2]
[323534941,1714075841125,-332.11,0.00011185,2]
[323534942,1714075841134,-500.0,0.0001123,2]
[323534943,1714075841147,-500.0,0.0001123,2]
[323534944,1714075841156,-500.0,0.0001123,2]
[323534945,1714075841166,-500.0,0.0001123,2]
[323534946,1714075841176,-500.0,0.0001123,2]
[323534947,1714075841186,-500.0,0.0001123,2]
[323534948,1714075841195,-500.0,0.0001123,2]
[323534949,1714075841206,-574.93,0.0001123,2]
[323534950,1714075841215,-500.0,0.0001123,2]
[323534951,1714075841225,-500.0,0.0001123,2]
[323534952,1714075841234,-500.0,0.0001123,2]
[323534953,1714075841245,-500.0,0.0001123,2]
[323534954,1714075841254,-500.0,0.0001123,2]
[323534955,1714075841264,-500.0,0.0001123,2]
[323534956,1714075841274,-522.78,0.0001123,2]
[323534957,1714075841283,-500.0,0.0001123,2]
[323534958,1714075841293,-500.0,0.0001123,2]
[323534959,1714075841302,-500.0,0.0001123,2]
[323534960,1714075841311,-500.0,0.0001123,2]
[323534961,1714075841321,-500.0,0.0001123,2]
[323534962,1714075841331,-500.0,0.0001123,2]
[323534963,1714075841340,-500.0,0.0001123,2]
[323534964,1714075841350,-500.0,0.0001123,2]
[323534965,1714075841360,-528.87,0.0001123,2]
[323534966,1714075841370,-500.0,0.0001123,2]
[323534967,1714075841384,-500.0,0.0001123,2]
[323534968,1714075841394,-500.0,0.0001123,2]
[323534969,1714075841403,-500.0,0.0001123,2]
[323534970,1714075841412,-500.0,0.0001123,2]
[323534971,1714075841421,-538.49,0.0001123,2]
[323534972,1714075841431,-500.0,0.0001123,2]
[323534973,1714075841440,-500.0,0.0001123,2]
[323534974,1714075841450,-576.62,0.0001123,2]
[323534975,1714075841459,-500.0,0.0001123,2]
[323534976,1714075841469,-500.0,0.0001123,2]
[323534977,1714075841479,-500.0,0.0001123,2]
[323534978,1714075841488,-500.0,0.0001123,2]
[323534979,1714075841497,-500.0,0.0001123,2]
[323534980,1714075841507,-500.0,0.0001123,2]
[323534981,1714075841516,-500.0,0.0001123,2]
[323534982,1714075841525,-500.0,0.0001123,2]
[323534983,1714075841534,-500.0,0.0001123,2]
[323534984,1714075841543,-500.0,0.0001123,2]
[323534985,1714075841553,-500.0,0.0001123,2]
[323534986,1714075841562,-500.0,0.0001123,2]
[323534987,1714075841572,-500.0,0.0001123,2]
[323534988,1714075841582,-446.57315614,0.0001123,2]
[323534989,1714075841591,-500.0,0.0001123,2]
[323534990,1714075841600,-500.0,0.0001123,2]
[323534991,1714075841610,-500.0,0.0001123,2]
[323534992,1714075841619,-500.0,0.0001123,2]
[323534993,1714075841631,-500.0,0.0001123,2]
[323534994,1714075841640,-500.0,0.0001123,2]
[323534995,1714075841649,-500.0,0.0001123,2]
[323534996,1714075841659,-500.0,0.0001123,2]
[323534997,1714075841668,-500.0,0.0001123,2]
[323534998,1714075841677,-500.0,0.0001123,2]
[323534999,1714075841686,-500.0,0.0001123,2]
[323535000,1714075841696,-500.0,0.0001123,2]
[323535001,1714075841704,-460.23540016,0.0001123,2]
[323535002,1714075841714,-503.51,0.0001123,2]
[323535003,1714075841723,-500.0,0.0001123,2]
[323535004,1714075841732,-500.0,0.0001123,2]
[323535005,1714075841741,-500.0,0.0001123,2]
[323535006,1714075841750,-500.0,0.0001123,2]
[323535007,1714075841759,-500.0,0.0001123,2]
[323535008,1714075841768,-500.0,0.0001123,2]
[323535009,1714075841778,-500.0,0.0001123,2]
[323535010,1714075841788,-500.0,0.0001123,2]
[323535011,1714075841797,-500.0,0.0001123,2]
[323535012,1714075841806,-500.0,0.0001123,2]
[323535013,1714075841815,-500.0,0.0001123,2]
[323535014,1714075841824,-500.0,0.0001123,2]
[323535015,1714075841833,-503.63610716,0.0001123,2]
[323535016,1714075841843,-217.6,0.0001123,2]
[323535017,1714075841852,-500.0,0.0001123,2]
[323535018,1714075841861,-500.0,0.0001123,2]
[323535019,1714075841870,-500.0,0.0001123,2]
[323535020,1714075841882,-500.0,0.0001123,2]
[323535021,1714075841892,-500.0,0.0001123,2]
[323535022,1714075841901,-500.0,0.0001123,2]
[323535023,1714075841911,-500.0,0.0001123,2]
[323535024,1714075841920,-500.0,0.0001123,2]
[323535025,1714075841929,-500.0,0.0001123,2]
[323535026,1714075841938,-507.43989857,0.0001123,2]
[323535027,1714075841947,-630.94578865,0.0001123,2]
[323535028,1714075841956,-604.17,0.0001123,2]
[323535029,1714075841965,-500.0,0.0001123,2]
[323535030,1714075841974,-500.0,0.0001123,2]
[323535031,1714075841984,-500.0,0.0001123,2]
[323535032,1714075841993,-500.0,0.0001123,2]
[323535033,1714075842003,-504.92681163,0.0001123,2]
[323535034,1714075842013,-500.0,0.0001123,2]
[323535035,1714075842025,-500.0,0.0001123,2]
[323535036,1714075842038,-500.0,0.0001123,2]
[323535037,1714075842048,-500.0,0.0001123,2]
[323535038,1714075842058,-500.0,0.0001123,2]
[323535039,1714075842068,-500.0,0.0001123,2]
[323535040,1714075842078,-500.0,0.0001123,2]
[323535041,1714075842087,-500.0,0.0001123,2]
[323535042,1714075842098,-503.01747096,0.0001123,2]
[323535043,1714075842107,-500.0,0.0001123,2]
[323535044,1714075842117,-464.96,0.0001123,2]
[323535045,1714075842130,-500.0,0.0001123,2]
[323535046,1714075842146,-500.0,0.0001123,2]
[323535047,1714075842157,-505.43839281,0.0001123,2]
[323535048,1714075842167,-150.0,0.0001123,2]
[323535049,1714075842177,-500.0,0.0001123,2]
[323535050,1714075842186,-500.0,0.0001123,2]
[323535051,1714075842196,-500.0,0.0001123,2]
[323535052,1714075842212,-500.0,0.0001123,2]
[323535053,1714075842221,-500.0,0.0001123,2]
[323535054,1714075842230,-170.40447882,0.0001123,2]
[323535055,1714075842240,-500.0,0.0001123,2]
[323535056,1714075842250,-500.0,0.0001123,2]
[323535057,1714075842259,-585.73843904,0.0001123,2]
[323535058,1714075842269,-500.0,0.0001123,2]
[323535059,1714075842279,-500.0,0.0001123,2]
[323535060,1714075842289,-500.0,0.0001123,2]
[323535061,1714075842298,-433.41,0.0001123,2]
[323535062,1714075842307,-500.0,0.0001123,2]
[323535063,1714075842316,-500.0,0.0001123,2]
[323535064,1714075842326,-500.0,0.0001123,2]
[323535065,1714075842335,-500.0,0.0001123,2]
[323535066,1714075842344,-500.0,0.0001123,2]
[323535067,1714075842353,-500.0,0.0001123,2]
[323535068,1714075842362,-500.0,0.0001123,2]
[323535069,1714075842372,-500.0,0.0001123,2]
[323535070,1714075842385,-500.0,0.0001123,2]
[323535071,1714075842394,-592.90225908,0.0001123,2]
[323535072,1714075842403,-857.97,0.0001123,2]
[323535073,1714075842412,-500.0,0.0001123,2]
[323535074,1714075842421,-500.0,0.0001123,2]
[323535075,1714075842430,-500.0,0.0001123,2]
[323535076,1714075842440,-539.21,0.0001123,2]
[323535077,1714075842449,-500.0,0.0001123,2]
[323535078,1714075842458,-500.0,0.0001123,2]
[323535079,1714075842467,-1130.14,0.0001123,2]
[323535080,1714075842476,-549.02,0.0001123,2]
[323535081,1714075842485,-5488.11,0.0001123,2]
[323535082,1714075842495,-505.54962366,0.0001123,2]
[323535083,1714075842504,-500.0,0.0001123,2]
[323535084,1714075842514,-500.0,0.0001123,2]
[323535085,1714075842524,-798.52,0.0001123,2]
[323535086,1714075842534,-281.2,0.0001123,2]
[323535087,1714075842544,-1193.54,0.0001123,2]
[323535088,1714075842553,-500.0,0.0001123,2]
[323535089,1714075842562,-500.0,0.0001123,2]
[323535090,1714075842572,-959.44,0.0001123,2]
[323535091,1714075842581,-500.0,0.0001123,2]
[323535092,1714075842590,-617.03,0.0001123,2]
[323535093,1714075842600,-500.0,0.0001123,2]
[323535094,1714075842610,-884.68,0.0001123,2]
[323535095,1714075842619,-500.0,0.0001123,2]
[323535096,1714075842630,-255.22241205,0.0001123,2]
[323535097,1714075842639,-13792.86,0.0001123,2]
[323535098,1714075842648,-500.0,0.0001123,2]
[323535100,1714075842656,-500.0,0.0001123,2]
[323535101,1714075842666,-1991.65,0.0001123,2]
[323535103,1714075842675,-500.0,0.0001123,2]
[323535105,1714075842684,-589.11,0.0001123,2]
[323535107,1714075842694,-645.1,0.0001123,2]
[323535108,1714075842703,-500.0,0.0001123,2]
[323535109,1714075842713,-500.0,0.0001123,2]
[323535110,1714075842723,-1124.46,0.0001123,2]
[323535111,1714075842732,-500.0,0.0001123,2]
[323535112,1714075842741,-713.7,0.0001123,2]
[323535113,1714075842750,-537.13,0.0001123,2]
[323535114,1714075842760,-516.44220964,0.0001123,2]
[323535116,1714075842769,-500.0,0.0001123,2]
[323535118,1714075842779,-500.0,0.0001123,2]
[323535120,1714075842789,-580.8891562,0.0001123,2]
[323535122,1714075842798,-2197.38,0.0001123,2]
[323535123,1714075842807,-1252.82,0.0001123,2]
[323535124,1714075842817,-262.98,0.0001123,2]
[323535125,1714075842826,-512.73,0.0001123,2]
[323535126,1714075842835,-537.32,0.0001123,2]
[323535127,1714075842845,-618.15,0.0001123,2]
[323535128,1714075842854,-500.0,0.0001123,2]
[323535129,1714075842864,-500.0,0.0001123,2]
[323535130,1714075842873,-535.78,0.0001123,2]
[323535131,1714075842885,-500.0,0.0001123,2]
[323535132,1714075842895,-500.0,0.0001123,2]
[323535133,1714075842904,-500.0,0.0001123,2]
[323535134,1714075842913,-499.37530364,0.0001123,2]
[323535135,1714075842923,-500.0,0.0001123,2]
[323535136,1714075842932,-410.75993095,0.0001123,2]
[323535137,1714075842942,-500.0,0.0001123,2]
[323535138,1714075842951,-500.0,0.0001123,2]
[323535139,1714075842961,-500.0,0.0001123,2]
[323535140,1714075842970,-613.56,0.0001123,2]
[323535141,1714075842980,-1265.24,0.0001123,2]
[323535142,1714075842990,-500.0,0.0001123,2]
[323535143,1714075843000,-500.0,0.0001123,2]
[323535144,1714075843015,-500.0,0.0001123,2]
[323535145,1714075843024,-500.0,0.0001123,2]
[323535146,1714075843034,-500.0,0.0001123,2]
[323535147,1714075843043,-500.0,0.0001123,2]
[323535148,1714075843053,-2760.73,0.0001123,2]
[323535149,1714075843063,-500.0,0.0001123,2]
[323535150,1714075843072,-1980.7,0.0001123,2]
[323535151,1714075843082,-500.0,0.0001123,2]
[323535152,1714075843094,-689.24,0.0001123,2]
[323535153,1714075843103,-500.0,0.0001123,2]
[323535154,1714075843112,-500.0,0.0001123,2]
[323535155,1714075843122,-255.2327174,0.0001123,2]
[323535156,1714075843133,-550.25,0.0001123,2]
[323535157,1714075843142,-500.0,0.0001123,2]
[323535158,1714075843152,-500.0,0.0001123,2]
[323535159,1714075843162,-500.0,0.0001123,2]
[323535160,1714075843171,-500.0,0.0001123,2]
[323535161,1714075843181,-567.05,0.0001123,2]
[323535162,1714075843191,-589.85,0.0001123,2]
[323535163,1714075843201,-500.0,0.0001123,2]
[323535164,1714075843211,-500.0,0.0001123,2]
[323535165,1714075843221,-948.7,0.00011231,2]
[323535166,1714075843230,-512.07762094,0.00011231,2]
[323535167,1714075843240,-640.38,0.00011231,2]
[323535168,1714075843249,-729.86,0.00011231,2]
[323535169,1714075843258,-500.0,0.00011231,2]
[323535170,1714075843267,-1035.2,0.00011231,2]
[323535171,1714075843276,-1877.44,0.00011231,2]
[323535172,1714075843285,-500.0,0.00011231,2]
[323535173,1714075843295,-500.0,0.00011231,2]
[323535174,1714075843304,-1198.92,0.00011231,2]
[323535175,1714075843313,-3028.96,0.00011231,2]
[323535176,1714075843321,-1063.08,0.00011231,2]
[323535177,1714075843331,-500.0,0.00011231,2]
[323535178,1714075843340,-500.0,0.00011231,2]
[323535179,1714075843349,-1013.53,0.00011231,2]
[323535180,1714075843358,-738.25,0.00011231,2]
[323535181,1714075843368,-500.0,0.00011231,2]
[323535182,1714075843378,-508.55,0.00011231,2]
[323535185,1714075843388,-1279.98,0.00011231,2]
[323535188,1714075843397,-500.0,0.00011232,2]
[323535190,1714075843406,-500.0,0.00011232,2]
[323535192,1714075843415,-544.57,0.00011232,2]
[323535194,1714075843425,-505.0,0.00011232,2]
[323535197,1714075843434,-228.99,0.00011232,2]
[323535199,1714075843443,-151.74,0.00011232,2]
[323535201,1714075843452,-500.0,0.00011232,2]
[323535203,1714075843462,-230.25,0.00011232,2]
[323535205,1714075843471,-686.66,0.00011232,2]
[323535207,1714075843480,-569.44,0.00011232,2]
[323535209,1714075843489,-500.0,0.00011232,2]
[323535211,1714075843499,-500.0,0.00011232,2]
[323535213,1714075843508,-500.0,0.00011232,2]
[323535215,1714075843517,-500.0,0.00011232,2]
[323535216,1714075843527,-703.8,0.00011232,2]
[323535219,1714075843536,-500.0,0.00011232,2]
[323535221,1714075843546,-500.0,0.00011232,2]
[323535223,1714075843555,-682.34,0.00011232,2]
[323535225,1714075843565,-500.0,0.00011232,2]
[323535227,1714075843574,-500.0,0.00011232,2]
[323535229,1714075843583,-500.0,0.00011232,2]
[323535231,1714075843593,-411.89,0.00011232,2]
[323535233,1714075843602,-500.0,0.00011232,2]
[323535235,1714075843611,-500.0,0.00011232,2]
[323535237,1714075843621,-500.0,0.00011232,2]
[323535239,1714075843631,-500.0,0.00011232,2]
[323535241,1714075843640,-567.91,0.00011232,2]
[323535243,1714075843649,-500.0,0.00011232,2]
[323535245,1714075843659,-500.0,0.00011232,2]
[323535247,1714075843668,-500.0,0.00011232,2]
[323535249,1714075843677,-500.0,0.00011232,2]
[323535251,1714075843687,-500.0,0.00011232,2]
[323535253,1714075843696,-500.0,0.00011232,2]
[323535255,1714075843705,-710.61,0.00011232,2]
[323535257,1714075843715,-349.12732083,0.00011232,2]
[323535259,1714075843724,-500.0,0.00011232,2]
[323535261,1714075843733,-609.7,0.00011232,2]
[323535263,1714075843742,-500.0,0.00011232,2]
[323535265,1714075843751,-500.0,0.00011232,2]
[323535267,1714075843760,-500.0,0.00011232,2]
[323535269,1714075843769,-500.0,0.00011232,2]
[323535271,1714075843778,-500.0,0.00011232,2]
[323535273,1714075843787,-500.0,0.00011232,2]
[323535275,1714075843798,-500.0,0.00011232,2]
[323535277,1714075843807,-500.0,0.00011232,2]
[323535279,1714075843816,-500.0,0.00011232,2]
[323535281,1714075843826,-261.54,0.00011232,2]
[323535282,1714075843835,-500.0,0.00011232,2]
[323535302,1714075844036,-500.0,0.00011232,2]
[323535303,1714075844046,-500.0,0.00011232,2]
[323535304,1714075844055,-500.0,0.00011232,2]
[323535305,1714075844065,-500.0,0.00011232,2]
[323535306,1714075844074,-172.43,0.00011232,2]
[323535307,1714075844084,-500.0,0.00011232,2]
[323535308,1714075844093,-500.0,0.00011232,2]
[323535309,1714075844102,-500.0,0.00011232,2]
[323535310,1714075844113,-500.0,0.00011232,2]
[323535311,1714075844122,-500.0,0.00011232,2]
[323535312,1714075844133,-500.0,0.00011232,2]
[323535313,1714075844146,-869.29,0.00011232,2]
[323535314,1714075844155,-500.0,0.00011232,2]
[323535315,1714075844164,-500.0,0.00011232,2]
[323535316,1714075844173,-500.0,0.00011232,2]
[323535317,1714075844183,-500.0,0.00011232,2]
[323535318,1714075844193,-500.0,0.00011232,2]
[323535319,1714075844202,-559.23,0.00011232,2]
[323535320,1714075844211,-500.0,0.00011232,2]
[323535321,1714075844220,-3376.32,0.00011232,2]
[323535322,1714075844230,-15107.19,0.00011232,2]
[323535323,1714075844239,-500.0,0.00011232,2]
[323535324,1714075844249,-1686.89,0.00011232,2]
[323535325,1714075844258,-1546.97,0.00011232,2]
[323535326,1714075844268,-8580.36,0.00011232,2]
[323535327,1714075844278,-502.46,0.00011232,2]
[323535328,1714075844287,-500.0,0.00011232,2]
[323535329,1714075844296,-541.99,0.00011232,2]
[323535330,1714075844306,-500.0,0.00011232,2]
[323535331,1714075844315,-500.0,0.00011232,2]
[323535332,1714075844325,-500.0,0.00011232,2]
[323535333,1714075844334,-799.78,0.00011232,2]
[323535334,1714075844343,-6085.27,0.00011232,2]
[323535335,1714075844353,-783.95,0.00011232,2]
[323535336,1714075844362,-500.0,0.00011232,2]
[323535337,1714075844371,-613.56,0.00011232,2]
[323535338,1714075844382,-2348.68,0.00011232,2]
[323535339,1714075844391,-910.74,0.00011232,2]
[323535340,1714075844400,-577.73,0.00011232,2]
[323535341,1714075844409,-500.0,0.00011232,2]
[323535342,1714075844418,-777.87,0.00011232,2]
[323535343,1714075844427,-500.0,0.00011232,2]
[323535344,1714075844437,-597.55,0.00011232,2]
[323535345,1714075844446,-746.37,0.00011232,2]
[323535346,1714075844455,-500.0,0.00011232,2]
[323535347,1714075844464,-577.87,0.00011232,2]
[323535348,1714075844473,-613.36,0.00011232,2]
[323535349,1714075844482,-1667.92,0.00011232,2]
[323535350,1714075844491,-500.0,0.00011232,2]
[323535351,1714075844500,-4951.04,0.00011232,2]
[323535352,1714075844510,-500.0,0.00011232,2]
[323535353,1714075844519,-602.62,0.00011232,2]
[323535354,1714075844529,-754.74,0.00011232,2]
[323535355,1714075844538,-1191.43,0.00011232,2]
[323535356,1714075844548,-2964.04,0.00011232,2]
[323535357,1714075844557,-2247.44,0.00011232,2]
[323535358,1714075844566,-1008.25,0.00011232,2]
[323535359,1714075844575,-500.0,0.00011232,2]
[323535360,1714075844585,-500.0,0.00011232,2]
[323535361,1714075844594,-1540.66,0.00011232,2]
[323535362,1714075844603,-901.43,0.00011232,2]
[323535363,1714075844612,-210.52910361,0.00011232,2]
[323535364,1714075844984,-289.47089639,0.00011232,2]
[323535365,1714075844993,-500.0,0.00011232,2]
[323535366,1714075845003,-500.0,0.00011232,2]
[323535367,1714075845013,-500.0,0.00011232,2]
[323535368,1714075845025,-4041.35,0.00011232,2]
[323535369,1714075845034,-500.0,0.00011232,2]
[323535370,1714075845043,-1936.15,0.00011232,2]
[323535371,1714075845052,-2492.02,0.00011232,2]
[323535372,1714075845062,-500.0,0.00011232,2]
[323535373,1714075845071,-509.91,0.00011232,2]
[323535374,1714075845081,-1405.05,0.00011232,2]
[323535375,1714075845092,-668.47,0.00011232,2]
[323535376,1714075845101,-226.31201686,0.00011232,2]
[323535377,1714075845110,-763.75,0.00011232,2]
[323535378,1714075845119,-906.17,0.00011232,2]
[323535379,1714075845130,-476.94,0.00011232,2]
[323535380,1714075845139,-500.0,0.00011232,2]
[323535381,1714075845149,-500.0,0.00011232,2]
[323535382,1714075845158,-500.0,0.00011232,2]
[323535383,1714075845167,-974.44,0.00011232,2]
[323535384,1714075845177,-500.0,0.00011232,2]
[323535385,1714075845186,-3854.82,0.00011232,2]
[323535386,1714075845196,-500.0,0.00011232,2]
[323535387,1714075845205,-2023.92691201,0.00011281,2]
[323535388,1714075847072,-540.6,0.00010958,2]
[323535389,1714075847082,-500.0,0.0001123,2]
[323535390,1714075847094,-3355.15536144,0.00011281,2]
[323535391,1714075847107,-991.31772655,0.00011281,2]
[323535392,1714075847117,-830.64,0.00011281,2]
[323535393,1714075847126,-8248.00701715,0.00011281,2]
[323535394,1714075847138,-687.549999,0.00011281,2]
[323535395,1714075847158,-484.23808323,0.00011231,2]
[323535396,1714075847188,-15.76191677,0.00011231,2]
[323535397,1714075847198,-2487.97723278,0.00011281,2]
[323535398,1714075847210,-738.99261413,0.00011281,2]
[323535399,1714075847595,-3239.6100593,0.00011281,2]
[323535400,1714075848087,-500.0,0.00010958,2]
[323535401,1714075848098,-500.0,0.00011131,2]
[323535402,1714075848107,-1068.35907027,0.00011281,2]
[323535403,1714075848119,-9342.38400737,0.00011281,2]
[323535404,1714075848129,-849.15,0.00011281,2]
[323535405,1714075848138,-1000.0,0.000113,2]
[323535406,1714075848147,-1000.0,0.000113,2]
[323535407,1714075848157,-1000.0,0.000113,2]
[323535408,1714075848166,-1000.0,0.000113,2]
[323535409,1714075848175,-1000.0,0.000113,2]
[323535410,1714075848185,-1000.0,0.000113,2]
[323535411,1714075848194,-1000.0,0.000113,2]
[323535412,1714075848203,-1007.0,0.000113,2]
[323535413,1714075848212,-150.0,0.0001137,2]
[323535414,1714075848222,-206.97,0.0001137,2]
[323535415,1714075848230,-150.0,0.0001137,2]
[323535416,1714075848240,-150.0,0.0001137,2]
[323535417,1714075848249,-150.0,0.0001137,2]
[323535418,1714075848258,-150.0,0.0001137,2]
[323535419,1714075848268,-347.34,0.0001137,2]
[323535420,1714075848277,-635.97,0.00011404,2]
[323535421,1714075848286,-500.0,0.00011404,2]
[323535422,1714075848295,-1209.91,0.00011404,2]
[323535423,1714075848305,-666.61,0.00011404,2]
[323535424,1714075848315,-873.13,0.00011404,2]